bitfinex/quotes_BTCUSD_20251201
["timestamp","ask_amount","ask_price","bid_price","bid_amount"]
[1764621143733,0.01169563,85502.0,85467.0,0.64301147]
[1764621144230,0.24561655,85501.0,85467.0,0.64301147]
[1764621144429,0.011697,85492.0,85467.0,0.64301147]
[1764621144618,0.01169686,85493.0,85467.0,0.66161147]
[1764621145076,0.01169645,85496.0,85467.0,0.66161147]
[1764621145277,0.01169645,85496.0,85467.0,0.65861147]
[1764621145575,0.24562377,85497.0,85467.0,1.06061147]
[1764621145752,0.24562377,85497.0,85467.0,1.05161147]
[1764621146077,0.00025877,85504.0,85467.0,1.04961147]
[1764621146278,0.01169563,85502.0,85467.0,1.05961147]
[1764621146477,0.01169631,85497.0,85467.0,1.05161147]
[1764621146618,0.24562334,85497.0,85467.0,1.05961147]
[1764621147388,0.2456211,85498.0,85467.0,1.05961147]
[1764621147603,0.01169618,85498.0,85467.0,1.05961147]
[1764621148033,0.01169576,85501.0,85467.0,1.05961147]
[1764621148471,0.24561164,85501.0,85467.0,1.05961147]
[1764621149419,0.00025877,85504.0,85467.0,1.05961147]
[1764621149623,0.01169549,85503.0,85467.0,1.05961147]
[1764621150502,0.00025877,85504.0,85467.0,1.05961147]
[1764621155989,0.01169399,85514.0,85511.0,0.0116944]
[1764621156190,0.0116959,85500.0,85493.0,0.01169686]
[1764621156394,0.24561809,85499.0,85494.0,0.03029672]
[1764621156606,0.23391806,85503.0,85497.0,0.01169631]
[1764621156806,0.24559686,85506.0,85501.0,0.24561102]
[1764621157011,0.00025874,85512.0,85509.0,0.01169467]
[1764621157415,0.00025874,85512.0,85511.0,0.23388803]
[1764621157649,0.00025874,85512.0,85506.0,0.01169508]
[1764621157650,0.24558281,85511.0,85506.0,0.01169508]
[1764621157860,0.23389403,85509.0,85506.0,0.24559678]
[1764621158062,0.23391539,85501.0,85491.0,0.23394014]
[1764621158280,0.23391539,85501.0,85461.0,1.17012171]
[1764621158281,0.24564009,85491.0,85480.0,0.01169864]
[1764621158497,0.24564009,85491.0,85485.0,0.0186]
[1764621158498,0.23395153,85488.0,85485.0,0.0186]
[1764621158668,0.2339538,85487.0,85485.0,0.0186]
[1764621158826,0.23395643,85486.0,85485.0,0.0186]
[1764621159642,0.23395643,85486.0,85485.0,0.0226]
[1764621159853,0.23395643,85486.0,85485.0,0.0186]
[1764621160049,0.23395643,85486.0,85485.0,0.0226]
[1764621160304,0.23395643,85486.0,85485.0,0.0236]
[1764621160707,0.01169713,85491.0,85485.0,0.0226]
[1764621160887,0.01169754,85488.0,85485.0,0.0226]
[1764621161048,0.01169754,85488.0,85485.0,0.0236]
[1764621161231,0.24564854,85488.0,85485.0,0.0236]
[1764621161426,0.24564854,85488.0,85485.0,0.0226]
[1764621161632,0.23395643,85486.0,85485.0,0.0226]
[1764621161891,0.23395643,85486.0,85485.0,0.0196]
[1764621162191,0.41297467,85486.0,85485.0,0.005]
[1764621162407,0.36451762,85486.0,85485.0,0.001]
[1764621162802,0.36451762,85486.0,85485.0,0.005]
[1764621162984,0.23397012,85481.0,85480.0,0.00999999]
[1764621163179,0.23399749,85471.0,85470.0,0.00999999]
[1764621163385,0.24570024,85470.0,85464.0,0.0186]
[1764621163607,0.01170028,85468.0,85464.0,0.03030083]
[1764621163755,0.01170028,85468.0,85465.0,0.24571377]
[1764621164452,0.01170028,85468.0,85464.0,0.0186]
[1764621164453,0.01170042,85467.0,85464.0,0.0186]
[1764621164656,0.01170192,85456.0,85447.0,0.01170316]
[1764621164863,0.2457537,85452.0,85447.0,0.03030316]
[1764621165070,0.01170233,85453.0,85448.0,0.01170302]
[1764621165285,0.24575232,85452.0,85447.0,0.2526619]
[1764621165504,0.24575232,85452.0,85449.0,0.23405755]
[1764621165722,0.24575232,85452.0,85448.0,0.01170302]
[1764621165723,0.24575232,85452.0,85448.0,0.24576256]
[1764621165929,0.01170233,85453.0,85450.0,0.23405314]
[1764621166147,0.24574634,85454.0,85451.0,0.2340522]
[1764621166554,0.24574634,85454.0,85451.0,0.23405178]
[1764621166765,0.24574634,85454.0,85450.0,0.24575766]
[1764621167118,0.0117022,85454.0,85451.0,0.24575416]
[1764621167330,0.01170042,85467.0,85453.0,0.01170233]
[1764621167524,0.23402487,85461.0,85460.0,0.00999999]
[1764621167724,0.23404247,85455.0,85451.0,0.001]
[1764621167925,0.23404247,85455.0,85452.0,0.2457517]
[1764621167926,0.23404133,85455.0,85452.0,0.2457517]
[1764621168249,0.01170165,85458.0,85454.0,0.2457448]
[1764621168453,0.01170179,85457.0,85454.0,0.2457448]
[1764621168663,0.0117011,85462.0,85455.0,0.01170206]
[1764621168864,0.01170165,85458.0,85453.0,0.01170233]
[1764621169031,0.01170192,85456.0,85450.0,0.25575699]
[1764621169229,0.01170192,85456.0,85452.0,0.003]
[1764621169475,0.01170192,85456.0,85452.0,0.24575182]
[1764621169683,0.23404469,85454.0,85452.0,0.01170247]
[1764621169916,0.01170206,85455.0,85452.0,0.24575197]
[1764621169917,0.24574378,85455.0,85452.0,0.24575197]
[1764621170622,0.24574378,85455.0,85452.0,0.01170247]
[1764621170779,0.23404439,85454.0,85452.0,0.001]
[1764621171098,0.0117011,85462.0,85454.0,0.24574508]
[1764621171272,0.01170165,85458.0,85454.0,0.0117022]
[1764621171478,0.24573823,85457.0,85454.0,0.0117022]
[1764621171863,0.01170165,85458.0,85454.0,0.0117022]
[1764621171864,0.23402583,85461.0,85454.0,0.24574527]
[1764621172061,0.24572645,85461.0,85456.0,0.23403856]
[1764621172284,0.24573487,85458.0,85455.0,0.01170206]
[1764621172488,1.35894966,85480.0,85457.0,0.01170179]
[1764621172489,0.01170069,85465.0,85457.0,0.01170179]
[1764621172662,0.01170055,85466.0,85461.0,0.24572544]
[1764621172889,0.01170055,85466.0,85462.0,0.0117011]
[1764621173104,0.23401994,85463.0,85461.0,0.24572599]
[1764621173437,0.23402487,85461.0,85456.0,0.01148004]
[1764621173688,0.2457378,85457.0,85453.0,0.0186]
[1764621173874,0.2340413,85455.0,85451.0,0.0186]
[1764621174019,0.23404005,85456.0,85451.0,0.0186]
[1764621174218,0.23404952,85452.0,85449.0,0.24576047]
[1764621174442,0.01170151,85459.0,85407.0,0.03881872]
[1764621174443,0.01170507,85433.0,85407.0,0.03881872]
[1764621174771,0.01170672,85421.0,85412.0,0.11703085]
[1764621174975,0.01170644,85423.0,85417.0,0.01170727]
[1764621175131,0.24583703,85423.0,85418.0,0.01170713]
[1764621175334,0.23413075,85423.0,85418.0,0.01170713]
[1764621175541,0.041987,85468.0,85430.0,0.00999999]
[1764621175744,0.23401118,85466.0,85450.0,0.00999999]
[1764621176042,0.01170097,85463.0,85454.0,0.001]
[1764621176241,0.01170083,85464.0,85460.0,0.00999999]
[1764621176439,0.24571931,85464.0,85450.0,0.01011656]
[1764621176650,0.01170124,85461.0,85453.0,0.01170233]
[1764621176823,0.01170151,85459.0,85455.0,0.01170206]
[1764621177028,0.01170165,85458.0,85453.0,0.01170233]
[1764621177283,0.01170151,85459.0,85455.0,0.01170206]
[1764621177497,0.24572758,85461.0,85456.0,0.01170192]
[1764621177700,0.01170138,85460.0,85456.0,0.01170192]
[1764621177998,0.01170097,85463.0,85456.0,0.01170192]
[1764621177999,0.01170097,85463.0,85460.0,0.00999999]
[1764621178294,0.2340057,85468.0,85461.0,0.01170124]
[1764621178295,0.01170069,85465.0,85461.0,0.01170124]
[1764621178517,0.24571461,85465.0,85460.0,0.00999999]
[1764621178723,0.01170097,85463.0,85459.0,0.24573068]
[1764621179246,0.01170097,85463.0,85450.0,0.01011656]
[1764621179247,0.04688623,85476.0,85470.0,0.00999999]
[1764621179450,0.0116996,85473.0,85468.0,0.01170028]
[1764621179693,0.01170001,85470.0,85462.0,0.0117011]
[1764621179895,0.01170001,85470.0,85465.0,0.01170069]
[1764621179896,0.01170014,85469.0,85465.0,0.01170069]
[1764621180074,0.01169987,85471.0,85467.0,0.01170042]
[1764621180271,0.01169973,85472.0,85468.0,0.01170028]
[1764621180495,0.01170042,85467.0,85461.0,0.01170124]
[1764621180752,0.01170001,85470.0,85461.0,0.01170124]
[1764621180967,0.01169973,85472.0,85467.0,0.24570666]
[1764621181164,0.24569736,85471.0,85466.0,0.2457093]
[1764621181449,0.01169973,85472.0,85467.0,0.01170042]
[1764621181597,0.0116996,85473.0,85469.0,0.01170014]
[1764621181800,0.24569301,85473.0,85469.0,0.24570175]
[1764621182007,0.323,85478.0,85470.0,0.25570023]
[1764621182205,0.25260887,85482.0,85470.0,0.25570023]
[1764621182206,0.01864,85482.0,85476.0,0.01169919]
[1764621182404,0.01169809,85484.0,85479.0,0.24567289]
[1764621182631,0.01169659,85495.0,85484.0,0.01169809]
[1764621182830,0.01169686,85493.0,85489.0,0.01169741]
[1764621183036,0.01169727,85490.0,85486.0,0.24565209]
[1764621183194,0.24564382,85490.0,85485.0,0.01169795]
[1764621183507,0.23394403,85491.0,85486.0,0.01169782]
[1764621183508,0.01169713,85491.0,85486.0,0.01169782]
[1764621183731,0.01169741,85489.0,85486.0,0.01169782]
[1764621183930,0.01169741,85489.0,85486.0,0.24565423]
[1764621184516,0.01169713,85491.0,85480.0,0.24397083]
[1764621184517,0.01169522,85505.0,85497.0,0.23392551]
[1764621184896,0.01169522,85505.0,85496.0,0.01169645]
[1764621184897,0.23391632,85501.0,85496.0,0.01169645]
[1764621185087,0.01181187,85504.0,85500.0,0.0116959]
[1764621185297,0.00011652,85504.0,85499.0,0.01169604]
[1764621185473,0.011697,85492.0,85477.0,0.01169905]
[1764621185794,0.01169932,85475.0,85465.0,0.24571409]
[1764621186030,0.01170055,85466.0,85457.0,0.01170179]
[1764621186271,0.01169987,85471.0,85462.0,0.0117011]
[1764621186272,0.01170001,85470.0,85462.0,0.0117011]
[1764621186480,0.01169905,85477.0,85470.0,0.00999999]
[1764621186666,0.24568969,85474.0,85469.0,0.01170014]
[1764621186870,0.0116996,85473.0,85468.0,0.24570524]
[1764621187612,0.01169973,85472.0,85468.0,0.24570524]
[1764621187813,0.01169973,85472.0,85469.0,0.003]
[1764621187814,0.01170001,85470.0,85469.0,0.003]
[1764621188156,0.0116996,85473.0,85468.0,0.2340057]
[1764621188300,0.01169932,85475.0,85470.0,0.0217]
[1764621188496,0.01169946,85474.0,85470.0,0.25569922]
[1764621188750,0.01169946,85474.0,85471.0,0.23399698]
[1764621188958,0.24568973,85474.0,85470.0,0.24569923]
[1764621189254,0.24569199,85473.0,85469.0,0.01570014]
[1764621189466,0.23399516,85472.0,85470.0,0.001]
[1764621190078,0.01170192,85456.0,85450.0,0.00999999]
[1764621190208,0.0117011,85462.0,85450.0,0.00011657]
[1764621190209,0.24575199,85452.0,85450.0,0.00011657]
[1764621190413,0.0117011,85462.0,85450.0,0.00011657]
[1764621190414,0.2457421,85456.0,85450.0,0.01011656]
[1764621190653,0.23404176,85455.0,85451.0,0.01170261]
[1764621190856,0.24574681,85454.0,85450.0,0.00011657]
[1764621191058,0.24574649,85454.0,85450.0,0.01181932]
[1764621191252,0.01170233,85453.0,85450.0,0.01181932]
[1764621191456,0.01170233,85453.0,85450.0,0.01581932]
[1764621191667,0.24574992,85453.0,85450.0,0.00411657]
[1764621191814,0.23404997,85452.0,85450.0,0.00011657]
[1764621192014,0.23405017,85452.0,85450.0,0.00411657]
[1764621192447,0.24575218,85454.0,85450.0,0.00511657]
[1764621192657,0.24575218,85454.0,85450.0,0.01681932]
[1764621192868,0.24575218,85454.0,85450.0,0.01581932]
[1764621193091,0.23404969,85452.0,85450.0,0.00411657]
[1764621193312,0.23405226,85451.0,85450.0,0.00111657]
[1764621193514,0.23404657,85454.0,85450.0,0.02781931]
[1764621193738,0.23404404,85454.0,85450.0,0.00611657]
[1764621193954,0.23404404,85454.0,85450.0,0.00111657]
[1764621194157,0.01170233,85453.0,85450.0,0.00411657]
[1764621194367,0.24574911,85453.0,85450.0,0.00111657]
[1764621194547,0.0117022,85454.0,85451.0,0.23405195]
[1764621194747,0.24574628,85454.0,85452.0,0.23404926]
[1764621194952,0.24571861,85464.0,85460.0,0.24572893]
[1764621195113,0.01170055,85466.0,85463.0,0.01170097]
[1764621195318,0.01170055,85466.0,85462.0,0.0117011]
[1764621195561,0.24571246,85466.0,85463.0,0.23401921]
[1764621195939,0.01170083,85464.0,85461.0,0.24572338]
[1764621198621,0.23405226,85451.0,85450.0,0.00511657]
[1764621198910,0.36693821,85451.0,85450.0,0.00511657]
[1764621199103,0.25927688,85451.0,85450.0,0.00511657]
[1764621199604,0.25927688,85451.0,85450.0,0.00411657]
[1764621199806,0.25927688,85451.0,85450.0,0.00011657]
[1764621200222,0.25927688,85451.0,85450.0,0.00211657]
[1764621200417,0.23405226,85451.0,85450.0,0.00211657]
[1764621200622,0.36809599,85451.0,85450.0,0.00211657]
[1764621200855,0.69109599,85451.0,85450.0,0.00211657]
[1764621201039,0.69109599,85451.0,85400.0,0.0002]
[1764621201040,0.2341701,85408.0,85400.0,0.0002]
[1764621201192,0.23428645,85408.0,85400.0,0.01019999]
[1764621201396,0.23428645,85408.0,85403.0,0.01170919]
[1764621201601,0.23428645,85408.0,85402.0,0.01170932]
[1764621201785,0.23428645,85408.0,85402.0,0.24589524]
[1764621201988,0.23428645,85408.0,85403.0,0.01170919]
[1764621202225,0.23428645,85408.0,85401.0,0.01170946]
[1764621202426,0.00011635,85408.0,85401.0,0.01170946]
[1764621202644,0.00011635,85408.0,85403.0,0.01170919]
[1764621202823,0.00011635,85408.0,85406.0,0.23417551]
[1764621203027,0.00011635,85408.0,85407.0,0.00463362]
[1764621203565,0.00011635,85408.0,85407.0,0.01611366]
[1764621203779,0.00011635,85408.0,85407.0,0.02111366]
[1764621204152,0.00011635,85408.0,85407.0,0.00963362]
[1764621204965,0.23428645,85408.0,85407.0,0.00963362]
[1764621206360,0.00011635,85408.0,85407.0,0.00963362]
[1764621206693,0.23428645,85408.0,85407.0,0.00963362]
[1764621206911,0.00011635,85408.0,85407.0,0.00963362]
[1764621207058,0.00011635,85408.0,85407.0,0.24380646]
[1764621207256,0.00011635,85408.0,85407.0,0.00963362]
[1764621207851,0.23428645,85408.0,85407.0,0.00963362]
[1764621208580,0.23428645,85408.0,85407.0,0.00863362]
[1764621208785,0.23428645,85408.0,85407.0,0.00963362]
[1764621208991,0.23428645,85408.0,85407.0,0.00463362]
[1764621209398,0.23428645,85408.0,85407.0,0.00763362]
[1764621209596,0.23428645,85408.0,85407.0,0.00463362]
[1764621209897,0.23428645,85408.0,85407.0,0.00763362]
[1764621210091,0.00011635,85408.0,85407.0,0.00663362]
[1764621210290,0.23428645,85408.0,85407.0,0.01913431]
[1764621210492,0.23428645,85408.0,85407.0,0.02013431]
[1764621211371,0.00011635,85408.0,85407.0,0.02013431]
[1764621211585,0.23428645,85408.0,85407.0,0.02013431]
[1764621214856,0.23428645,85408.0,85407.0,0.25430715]
[1764621214857,0.00011635,85408.0,85407.0,0.25430715]
[1764621215026,0.00011635,85408.0,85407.0,0.26578719]
[1764621215227,0.00011635,85408.0,85407.0,0.02013431]
[1764621215496,0.23428645,85408.0,85407.0,0.02013431]
[1764621216256,0.23428645,85408.0,85407.0,0.01613431]
[1764621216475,0.23428645,85408.0,85407.0,0.01713431]
[1764621216681,0.57592645,85408.0,85407.0,0.01713431]
[1764621218269,0.57592645,85408.0,85407.0,0.01613431]
[1764621218470,0.69115241,85408.0,85407.0,0.01613431]
[1764621218828,0.69115241,85408.0,85407.0,0.01713431]
[1764621219046,0.69115241,85408.0,85407.0,0.01613431]
[1764621219588,0.71627573,85408.0,85407.0,0.01613431]
[1764621219991,0.69115241,85408.0,85407.0,0.01613431]
[1764621220199,0.57592645,85408.0,85407.0,0.01613431]
[1764621220657,0.60104914,85408.0,85407.0,0.01613431]
[1764621221587,0.66357213,85408.0,85407.0,0.01613431]
[1764621221800,0.63944944,85408.0,85407.0,0.01613431]
[1764621221949,0.66357303,85408.0,85407.0,0.01613431]
[1764621222148,0.77879899,85408.0,85407.0,0.01613431]
[1764621222355,0.78179899,85408.0,85407.0,0.01613431]
[1764621222582,0.77879899,85408.0,85407.0,0.01613431]
[1764621222781,0.78179899,85408.0,85407.0,0.01613431]
[1764621223310,0.78279899,85408.0,85407.0,0.01613431]
[1764621223510,0.78279899,85408.0,85356.0,0.01171563]
[1764621223511,0.23427159,85371.0,85356.0,0.01171563]
[1764621223677,0.23427159,85371.0,85360.0,0.01019999]
[1764621223875,0.33959449,85371.0,85360.0,0.01019999]
[1764621224698,0.33971075,85371.0,85360.0,0.01019999]
[1764621225092,0.33971075,85371.0,85360.0,0.0002]
[1764621225663,0.33971075,85371.0,85370.0,0.0032]
[1764621226600,0.00011626,85371.0,85370.0,0.0042]
[1764621227094,0.00011626,85371.0,85370.0,0.0032]
[1764621227497,0.10543916,85371.0,85370.0,0.0032]
[1764621227712,0.10543916,85371.0,85370.0,0.0002]
[1764621228132,0.10543916,85371.0,85370.0,0.0022]
[1764621229154,0.10543916,85371.0,85370.0,0.00339943]
[1764621229608,0.56988182,85371.0,85370.0,0.00339943]
[1764621230039,0.4536021,85371.0,85370.0,0.00339943]
[1764621230219,0.3482792,85371.0,85370.0,0.00339943]
[1764621230391,0.32311626,85371.0,85370.0,0.00339943]
[1764621230900,0.32311626,85371.0,85370.0,0.00139943]
[1764621231057,0.32411626,85371.0,85370.0,0.00139943]
[1764621231258,0.32311626,85371.0,85370.0,0.00139943]
[1764621231469,0.00011626,85371.0,85370.0,0.00139943]
[1764621231669,0.00011626,85371.0,85370.0,0.00239943]
[1764621232784,0.00011626,85371.0,85370.0,0.00139943]
[1764621234010,0.00011626,85371.0,85370.0,0.00239943]
[1764621234802,0.00011626,85371.0,85370.0,0.00139943]
[1764621235238,0.00011626,85371.0,85370.0,0.00239943]
[1764621236577,0.23438785,85371.0,85370.0,0.00239943]
[1764621237270,0.23438785,85371.0,85370.0,0.00139943]
[1764621237271,0.43577169,85371.0,85370.0,0.00139943]
[1764621237457,0.43577169,85371.0,85370.0,0.00239943]
[1764621237458,0.33971075,85371.0,85370.0,0.00239943]
[1764621239474,0.25943804,85371.0,85370.0,0.00239943]
[1764621241400,0.15411514,85371.0,85370.0,0.00239943]
[1764621241607,0.25943804,85371.0,85370.0,0.00239943]
[1764621242143,0.70620004,85371.0,85370.0,0.00239943]
[1764621242831,0.70620004,85371.0,85370.0,1e-08]
[1764621242832,1.05510352,85371.0,85370.0,1e-08]
[1764621243017,1.05510352,85371.0,85316.0,0.002]
[1764621243018,0.55732099,85353.0,85316.0,0.002]
[1764621243219,0.60115746,85353.0,85322.0,0.0117203]
[1764621243422,0.73798119,85353.0,85320.0,0.01172058]
[1764621243740,0.73798119,85353.0,85316.0,0.002]
[1764621243940,0.70648036,85353.0,85320.0,0.01172058]
[1764621244167,0.70648036,85353.0,85321.0,0.01172044]
[1764621244351,0.70648036,85353.0,85340.0,0.00999999]
[1764621244554,0.02519647,85353.0,85340.0,0.00999999]
[1764621244745,0.01171495,85361.0,85340.0,0.00999999]
[1764621244746,0.24603228,85355.0,85350.0,0.00999999]
[1764621244901,0.24603228,85355.0,85344.0,0.01171728]
[1764621244902,0.01171577,85355.0,85348.0,0.01171673]
[1764621245099,0.001,85353.0,85347.0,0.23433724]
[1764621245332,0.23532099,85353.0,85344.0,0.2343452]
[1764621245517,0.23532099,85353.0,85345.0,0.01171714]
[1764621245727,0.23532099,85353.0,85346.0,0.01171701]
[1764621246010,0.001,85353.0,85346.0,0.01171701]
[1764621246166,0.001,85353.0,85347.0,0.01171687]
[1764621246365,0.23532099,85353.0,85343.0,0.01171742]
[1764621246592,0.29633176,85353.0,85341.0,0.01171769]
[1764621246868,0.25954862,85353.0,85340.0,0.00999999]
[1764621247045,0.23432099,85353.0,85336.0,0.01171838]
[1764621247250,0.23432099,85353.0,85334.0,0.2460864]
[1764621247458,0.55732099,85353.0,85330.0,0.0002]
[1764621247658,0.61405924,85353.0,85340.0,0.00999999]
[1764621247857,0.69777458,85353.0,85330.0,0.0002]
[1764621248254,0.69777458,85353.0,85340.0,0.00999999]
[1764621248679,0.69777458,85353.0,85352.0,0.01341948]
[1764621249208,0.73977569,85353.0,85352.0,0.01341948]
[1764621249416,0.58254862,85353.0,85352.0,0.01341948]
[1764621249564,0.62459981,85353.0,85352.0,0.01341948]
[1764621250502,0.58254862,85353.0,85352.0,0.01341948]
[1764621250701,0.60118862,85353.0,85352.0,0.01341948]
[1764621252039,0.02522763,85353.0,85352.0,0.01341948]
[1764621252187,0.29108764,85354.0,85352.0,0.01341948]
[1764621252390,0.02522763,85353.0,85352.0,0.01283572]
[1764621252591,0.02522763,85354.0,85352.0,0.01283572]
[1764621252970,0.05676914,85354.0,85352.0,0.24715946]
[1764621253172,0.02522763,85353.0,85352.0,0.01283572]
[1764621253375,0.05676914,85354.0,85352.0,0.01283572]
[1764621253532,0.25954635,85354.0,85352.0,0.01283572]
[1764621253735,0.23432099,85353.0,85352.0,0.01283572]
[1764621253946,0.02522763,85353.0,85352.0,0.01283572]
[1764621254176,0.26586023,85354.0,85352.0,0.01283572]
[1764621254177,0.02522763,85354.0,85353.0,0.23432099]
[1764621254359,0.05676914,85359.0,85356.0,0.01171563]
[1764621254557,0.23429613,85363.0,85359.0,0.01171522]
[1764621254558,0.06848381,85363.0,85359.0,0.01171522]
[1764621254815,0.2342964,85362.0,85358.0,0.23430536]
[1764621254983,0.25952403,85362.0,85359.0,0.23430451]
[1764621255381,0.27123884,85362.0,85359.0,0.24601973]
[1764621255748,0.24601121,85362.0,85359.0,0.24601973]
[1764621255916,0.27123884,85362.0,85359.0,0.24601973]
[1764621256125,0.24601121,85362.0,85359.0,0.24601973]
[1764621256327,0.24601121,85362.0,85359.0,0.23430217]
[1764621256690,0.02522763,85364.0,85361.0,0.24601398]
[1764621257084,0.03154151,85377.0,85373.0,0.0117133]
[1764621257282,0.03154151,85377.0,85361.0,0.01864]
[1764621257283,0.01171412,85367.0,85360.0,0.00999999]
[1764621257463,0.01171412,85367.0,85360.0,0.00038703]
[1764621257464,0.01171481,85362.0,85360.0,0.00038703]
[1764621257667,0.01171467,85363.0,85360.0,0.00038703]
[1764621257870,0.23429903,85361.0,85360.0,0.00038703]
[1764621258306,0.58253693,85361.0,85360.0,0.00038703]
[1764621258532,0.69776289,85361.0,85360.0,0.00038703]
[1764621258730,0.69776289,85361.0,85360.0,0.00071131]
[1764621258849,0.58253693,85361.0,85360.0,0.00071131]
[1764621259053,0.58253693,85361.0,85360.0,0.00171131]
[1764621259678,0.58253693,85361.0,85360.0,0.00371131]
[1764621260243,0.58253693,85361.0,85360.0,0.00071131]
[1764621260537,0.69876289,85361.0,85360.0,0.00071131]
[1764621261398,0.46446386,85361.0,85360.0,0.00071131]
[1764621261600,0.3492379,85361.0,85360.0,0.00071131]
[1764621262165,0.58353693,85361.0,85360.0,0.00071131]
[1764621265870,0.41997641,85361.0,85360.0,0.00071131]
[1764621266075,0.23529903,85361.0,85360.0,0.00071131]
[1764621266275,0.34923517,85361.0,85360.0,0.00071131]
[1764621267800,0.23529903,85361.0,85360.0,0.00071131]
[1764621268002,0.55829903,85361.0,85360.0,0.00071131]
[1764621269365,0.324,85361.0,85360.0,0.00071131]
[1764621269576,0.001,85361.0,85360.0,0.72712629]
[1764621269791,0.001,85361.0,85360.0,0.80123883]
[1764621269980,0.01868,85421.0,85410.0,0.00999999]
[1764621270186,0.323,85416.0,85410.0,0.00999999]
[1764621270335,0.323,85416.0,85413.0,0.24586109]
[1764621270539,0.323,85416.0,85410.0,0.02170822]
[1764621270841,0.323,85416.0,85414.0,0.23415107]
[1764621271041,0.01868,85428.0,85420.0,0.00999999]
[1764621271207,0.01879659,85428.0,85420.0,0.00999999]
[1764621271411,0.01879659,85428.0,85420.0,0.24413671]
[1764621271609,0.12411949,85428.0,85421.0,0.01170672]
[1764621271805,0.12411949,85428.0,85420.0,0.00999999]
[1764621272222,0.23412136,85426.0,85420.0,0.00999999]
[1764621272424,0.01170603,85426.0,85420.0,0.00999999]
[1764621272628,0.01170617,85425.0,85420.0,0.00999999]
[1764621272824,0.323,85425.0,85421.0,0.001]
[1764621273129,0.01170631,85424.0,85410.0,0.00999999]
[1764621273331,0.58882891,85425.0,85395.0,0.01171028]
[1764621273332,0.01170809,85411.0,85395.0,0.01171028]
[1764621273525,0.01170809,85411.0,85400.0,0.02170959]
[1764621273526,0.323,85408.0,85400.0,0.02170959]
[1764621273669,0.01170809,85411.0,85405.0,0.01170891]
[1764621273870,0.01170823,85410.0,85401.0,0.24589685]
[1764621274088,0.323,85409.0,85404.0,0.01170905]
[1764621274270,0.323,85409.0,85402.0,0.24589501]
[1764621274501,0.323,85409.0,85404.0,0.01170905]
[1764621274760,0.323,85409.0,85405.0,0.2458865]
[1764621275042,0.01170864,85407.0,85402.0,0.01170932]
[1764621275185,0.33470877,85406.0,85401.0,0.01270946]
[1764621275385,0.23418655,85402.0,85401.0,0.001]
[1764621276034,0.2458906,85404.0,85401.0,0.001]
[1764621276035,0.323,85403.0,85401.0,0.001]
[1764621276460,0.323,85403.0,85399.0,0.00721973]
[1764621276614,0.32311652,85403.0,85401.0,0.004]
[1764621277174,0.23430212,85403.0,85401.0,0.004]
[1764621277385,0.4283229,85402.0,85401.0,0.004]
[1764621277767,0.4283229,85402.0,85401.0,0.005]
[1764621278124,0.4283229,85402.0,85401.0,0.004]
[1764621278518,0.24594725,85385.0,85380.0,0.00999999]
[1764621278692,0.33471165,85385.0,85380.0,0.02171233]
[1764621278897,0.323,85385.0,85380.0,0.00999999]
[1764621279101,0.323,85385.0,85383.0,0.2342362]
[1764621279254,0.323,85385.0,85383.0,0.23423861]
[1764621279453,0.323,85385.0,85383.0,0.23423866]
[1764621279677,0.33471111,85389.0,85384.0,0.01171179]
[1764621280026,0.33471111,85389.0,85385.0,0.01171165]
[1764621280230,0.33471111,85389.0,85384.0,0.24594626]
[1764621280406,0.33471111,85389.0,85383.0,0.01471193]
[1764621280847,0.33471097,85390.0,85384.0,0.01271179]
[1764621281143,0.323,85390.0,85386.0,0.2459413]
[1764621281314,0.5689312,85390.0,85384.0,0.01171179]
[1764621281514,0.01171138,85387.0,85383.0,0.001]
[1764621281717,0.01171111,85389.0,85383.0,0.001]
[1764621281915,0.323,85392.0,85387.0,0.2342274]
[1764621282083,0.01171097,85390.0,85385.0,0.01171165]
[1764621282284,0.01171111,85389.0,85385.0,0.01171165]
[1764621283007,0.01171111,85389.0,85387.0,0.002]
[1764621283342,0.323,85388.0,85386.0,0.001]
[1764621283542,0.323,85388.0,85384.0,0.01171179]
[1764621283702,0.33471124,85388.0,85385.0,0.001]
[1764621283911,0.33471124,85388.0,85385.0,0.003]
[1764621284107,0.56893877,85388.0,85385.0,0.003]
[1764621284311,0.56893877,85388.0,85385.0,0.002]
[1764621284731,0.24593109,85390.0,85385.0,0.01371165]
[1764621284732,0.01171097,85390.0,85385.0,0.01371165]
[1764621284937,0.01171111,85389.0,85385.0,0.01371165]
[1764621285115,0.01171111,85389.0,85385.0,0.01171165]
[1764621285473,0.323,85389.0,85386.0,0.002]
[1764621285650,0.323,85389.0,85388.0,0.23422494]
[1764621285852,0.00999999,85430.0,85386.0,0.01171152]
[1764621285853,0.323,85401.0,85391.0,0.01171083]
[1764621286206,0.33471015,85396.0,85390.0,0.00999999]
[1764621286539,0.323,85396.0,85393.0,0.24592103]
[1764621286744,0.33471015,85396.0,85391.0,0.2459271]
[1764621286948,0.01171028,85395.0,85390.0,0.02171096]
[1764621287151,0.323,85394.0,85390.0,0.24593034]
[1764621287354,0.323,85394.0,85391.0,0.01171083]
[1764621287992,0.323,85394.0,85391.0,0.24592633]
[1764621288211,0.33471015,85396.0,85390.0,0.00999999]
[1764621288406,0.323,85396.0,85390.0,0.00999999]
[1764621288587,0.323,85396.0,85393.0,0.23521088]
[1764621288788,0.323,85396.0,85393.0,0.24692144]
[1764621288997,0.323,85396.0,85393.0,0.24592144]
[1764621289205,0.01170987,85398.0,85393.0,0.01171056]
[1764621289392,0.323,85399.0,85394.0,0.01171042]
[1764621289603,0.323,85399.0,85396.0,0.01171015]
[1764621289903,0.323,85399.0,85394.0,0.01171042]
[1764621290103,0.323,85399.0,85398.0,0.23419752]
[1764621290304,0.00011652,85403.0,85401.0,0.23418892]
[1764621290475,0.00011652,85403.0,85402.0,0.23418655]
[1764621290886,0.23418894,85402.0,85389.0,0.24593069]
[1764621291081,0.00011652,85403.0,85394.0,0.01171042]
[1764621291282,0.00011652,85403.0,85396.0,0.23420029]
[1764621291662,0.00011652,85403.0,85399.0,0.24590389]
[1764621291856,0.01182571,85403.0,85397.0,0.2459081]
[1764621291995,0.01182571,85403.0,85398.0,0.01170987]
[1764621292208,0.01170932,85402.0,85397.0,0.2459081]
[1764621292400,0.01170932,85402.0,85398.0,0.24590684]
[1764621292607,0.24589674,85402.0,85397.0,0.2459081]
[1764621292803,0.24591088,85397.0,85396.0,0.001]
[1764621293031,0.01170987,85398.0,85393.0,0.24592092]
[1764621293248,0.24590805,85398.0,85393.0,0.01171056]
[1764621293437,0.0117096,85400.0,85395.0,0.24591494]
[1764621293859,0.24590399,85400.0,85397.0,0.001]
[1764621294187,0.23419545,85399.0,85397.0,0.001]
[1764621294896,0.23419545,85399.0,85370.0,0.01999999]
[1764621294897,0.01171028,85395.0,85390.0,0.01171097]
[1764621295047,0.01171015,85396.0,85390.0,0.24593014]
[1764621295249,0.0117096,85400.0,85394.0,0.01171042]